[Event "Titled Tuesday Blitz March 14 Late 2023"]
[White "Gasparyan, David"]
[Black "Liu, Casper"]
[WhiteFideId "13311980"]
[BlackFideId "1454153"]
[WhiteElo "2517"]
[BlackElo "2221"]
[Result "0-1"]
[Round "04"]
[TimeControl "180+1"]
[Date "2023.03.14"]
[WhiteClock "0:00:06"]
[BlackClock "0:00:15"]

1. Nf3 {[%clk 0:03:00]}  Nc6 {[%clk 0:02:56]} 2. g3 {[%clk 0:03:01]}  d6 {[%clk 0:02:56]} 3. Bg2 {[%clk 0:03:01]}  Bd7 {[%clk 0:02:57]} 4. O-O {[%clk 0:03:00]}  Qc8 {[%clk 0:02:57]} 5. d4 {[%clk 0:02:54]}  Bh3 {[%clk 0:02:56]} 6. d5 {[%clk 0:02:55]}  Ne5 {[%clk 0:02:56]} 7. Nxe5 {[%clk 0:02:51]}  dxe5 {[%clk 0:02:57]} 8. e4 {[%clk 0:02:36]}  h5 {[%clk 0:02:56]} 9. Qf3 {[%clk 0:02:24]}  h4 {[%clk 0:02:55]} 10. Bxh3 {[%clk 0:02:24]}  Qxh3 {[%clk 0:02:54]} 11. Qg2 {[%clk 0:02:24]}  Qd7 {[%clk 0:02:48]} 12. f4 {[%clk 0:02:20]}  hxg3 {[%clk 0:02:46]} 13. hxg3 {[%clk 0:02:20]}  e6 {[%clk 0:02:36]} 14. Be3 {[%clk 0:02:17]}  Nf6 {[%clk 0:02:30]} 15. Qf3 {[%clk 0:01:58]}  exd5 {[%clk 0:02:24]} 16. fxe5 {[%clk 0:01:54]}  Ng4 {[%clk 0:02:24]} 17. Nd2 {[%clk 0:01:15]}  Nh2 {[%clk 0:02:06]} 18. Qf2 {[%clk 0:00:59]}  Nxf1 {[%clk 0:01:51]} 19. Rxf1 {[%clk 0:00:59]}  O-O-O {[%clk 0:01:12]} 20. Qxf7 {[%clk 0:00:50]}  Qxf7 {[%clk 0:01:07]} 21. Rxf7 {[%clk 0:00:51]}  dxe4 {[%clk 0:01:08]} 22. Nxe4 {[%clk 0:00:51]}  Rd1+ {[%clk 0:01:05]} 23. Kg2 {[%clk 0:00:50]}  Re1 {[%clk 0:01:00]} 24. Kf3 {[%clk 0:00:38]}  b6 {[%clk 0:00:46]} 25. e6 {[%clk 0:00:35]}  Rf1+ {[%clk 0:00:32]} 26. Nf2 {[%clk 0:00:34]}  Bd6 {[%clk 0:00:31]} 27. Ke2 {[%clk 0:00:31]}  Rg1 {[%clk 0:00:29]} 28. Ne4 {[%clk 0:00:29]}  Rg2+ {[%clk 0:00:28]} 29. Kd3 {[%clk 0:00:29]}  Bxg3 {[%clk 0:00:27]} 30. Rxg7 {[%clk 0:00:28]}  Rd8+ {[%clk 0:00:26]} 31. Kc4 {[%clk 0:00:16]}  Rxc2+ {[%clk 0:00:24]} 32. Kb3 {[%clk 0:00:17]}  Rg2 {[%clk 0:00:19]} 33. e7 {[%clk 0:00:12]}  Re8 {[%clk 0:00:09]} 34. Nxg3 {[%clk 0:00:10]}  a5 {[%clk 0:00:06]} 35. Bd4 {[%clk 0:00:08]}  Kd7 {[%clk 0:00:05]} 36. Bf6 {[%clk 0:00:08]}  Rf2 {[%clk 0:00:05]} 37. Ne4 {[%clk 0:00:08]}  Rf4 {[%clk 0:00:04]} 38. Nc3 {[%clk 0:00:02]}  Rxf6 {[%clk 0:00:04]} 39. Nd5 {[%clk 0:00:02]}  Rd6 {[%clk 0:00:04]} 40. Nf4 {[%clk 0:00:02]}  Rxe7 {[%clk 0:00:04]} 41. Rg3 {[%clk 0:00:03]}  Re4 {[%clk 0:00:03]} 42. Ng6 {[%clk 0:00:03]}  Rb4+ {[%clk 0:00:04]} 43. Kc3 {[%clk 0:00:03]}  Kc6 {[%clk 0:00:04]} 44. Ne7+ {[%clk 0:00:03]}  Kb7 {[%clk 0:00:04]} 45. Nf5 {[%clk 0:00:03]}  Rc6+ {[%clk 0:00:05]} 46. Kd3 {[%clk 0:00:04]}  Rxb2 {[%clk 0:00:05]} 47. Nd4 {[%clk 0:00:04]}  Rd6 {[%clk 0:00:05]} 48. Ke4 {[%clk 0:00:03]}  Rb4 {[%clk 0:00:05]} 49. Rd3 {[%clk 0:00:03]}  c5 {[%clk 0:00:06]} 50. Ke5 {[%clk 0:00:04]}  Rbxd4 {[%clk 0:00:06]} 51. Rg3 {[%clk 0:00:05]}  Kc6 {[%clk 0:00:07]} 52. Rg7 {[%clk 0:00:05]}  R4d5+ {[%clk 0:00:07]} 53. Ke4 {[%clk 0:00:05]}  a4 {[%clk 0:00:08]} 54. Rg8 {[%clk 0:00:05]}  Rd4+ {[%clk 0:00:09]} 55. Ke5 {[%clk 0:00:05]}  Kb5 {[%clk 0:00:10]} 56. Rg3 {[%clk 0:00:05]}  R6d5+ {[%clk 0:00:11]} 57. Ke6 {[%clk 0:00:05]}  Rd3 {[%clk 0:00:11]} 58. Rg4 {[%clk 0:00:06]}  R5d4 {[%clk 0:00:12]} 59. Rg5 {[%clk 0:00:06]}  Kb4 {[%clk 0:00:12]} 60. Ke5 {[%clk 0:00:05]}  c4 {[%clk 0:00:12]} 61. Rg6 {[%clk 0:00:06]}  c3 {[%clk 0:00:13]} 62. Rxb6+ {[%clk 0:00:06]}  Ka3 {[%clk 0:00:13]} 63. Rb1 {[%clk 0:00:06]}  c2 {[%clk 0:00:13]} 64. Rc1 {[%clk 0:00:06]}  Kb2 {[%clk 0:00:14]} 65. Rf1 {[%clk 0:00:05]}  c1=Q {[%clk 0:00:15]} 66. Rf2+ {[%clk 0:00:06]}  Qc2 {[%clk 0:00:15]} 0-1


[Site "https://www.chess.com"]

[Event "Titled Tuesday Blitz March 14 Late 2023"]
[White "Golubev, Mikhail"]
[Black "Yanchenko, Roman"]
[WhiteFideId "14100983"]
[BlackFideId "4137329"]
[WhiteElo "2374"]
[BlackElo "2491"]
[Result "1-0"]
[Round "04"]
[TimeControl "180+1"]
[Date "2023.03.14"]
[WhiteClock "0:00:17"]
[BlackClock "0:00:19"]

1. e4 {[%clk 0:03:00]}  e6 {[%clk 0:02:59]} 2. d4 {[%clk 0:03:00]}  d5 {[%clk 0:03:00]} 3. Nc3 {[%clk 0:03:00]}  Bb4 {[%clk 0:03:00]} 4. e5 {[%clk 0:03:00]}  Ne7 {[%clk 0:03:01]} 5. a3 {[%clk 0:02:59]}  Bxc3+ {[%clk 0:03:01]} 6. bxc3 {[%clk 0:03:00]}  b6 {[%clk 0:03:02]} 7. Qg4 {[%clk 0:02:58]}  Kf8 {[%clk 0:03:03]} 8. a4 {[%clk 0:02:47]}  Ba6 {[%clk 0:03:03]} 9. Bxa6 {[%clk 0:02:45]}  Nxa6 {[%clk 0:03:04]} 10. a5 {[%clk 0:02:45]}  b5 {[%clk 0:03:03]} 11. Ba3 {[%clk 0:02:40]}  Rc8 {[%clk 0:03:03]} 12. Nf3 {[%clk 0:02:39]}  Kg8 {[%clk 0:03:00]} 13. h4 {[%clk 0:02:33]}  c5 {[%clk 0:02:53]} 14. dxc5 {[%clk 0:02:22]}  Nxc5 {[%clk 0:02:54]} 15. O-O {[%clk 0:02:18]}  a6 {[%clk 0:02:48]} 16. Nd4 {[%clk 0:02:13]}  h5 {[%clk 0:02:45]} 17. Qg5 {[%clk 0:02:03]}  Rh6 {[%clk 0:02:42]} 18. f4 {[%clk 0:01:55]}  Rg6 {[%clk 0:01:53]} 19. Qxh5 {[%clk 0:01:53]}  Ne4 {[%clk 0:01:53]} 20. f5 {[%clk 0:01:22]}  Ng3 {[%clk 0:01:21]} 21. fxg6 {[%clk 0:01:21]}  Nxg6 {[%clk 0:00:50]} 22. Qf3 {[%clk 0:00:56]}  Nxf1 {[%clk 0:00:45]} 23. Rxf1 {[%clk 0:00:55]}  Nxe5 {[%clk 0:00:45]} 24. Qg3 {[%clk 0:00:55]}  Qc7 {[%clk 0:00:37]} 25. Bc1 {[%clk 0:00:50]}  Ng6 {[%clk 0:00:33]} 26. Qxc7 {[%clk 0:00:38]}  Rxc7 {[%clk 0:00:34]} 27. h5 {[%clk 0:00:39]}  Ne7 {[%clk 0:00:33]} 28. Bd2 {[%clk 0:00:38]}  Nc6 {[%clk 0:00:33]} 29. Nxc6 {[%clk 0:00:36]}  Rxc6 {[%clk 0:00:34]} 30. Rf4 {[%clk 0:00:34]}  f6 {[%clk 0:00:30]} 31. g4 {[%clk 0:00:32]}  e5 {[%clk 0:00:20]} 32. Rf5 {[%clk 0:00:32]}  Kf7 {[%clk 0:00:20]} 33. g5 {[%clk 0:00:29]}  Ke6 {[%clk 0:00:20]} 34. Rf3 {[%clk 0:00:29]}  f5 {[%clk 0:00:20]} 35. h6 {[%clk 0:00:28]}  gxh6 {[%clk 0:00:20]} 36. gxh6 {[%clk 0:00:29]}  f4 {[%clk 0:00:21]} 37. Rh3 {[%clk 0:00:28]}  Rc8 {[%clk 0:00:20]} 38. h7 {[%clk 0:00:27]}  Rh8 {[%clk 0:00:21]} 39. Rh5 {[%clk 0:00:27]}  Kf6 {[%clk 0:00:20]} 40. Kf2 {[%clk 0:00:26]}  Ke6 {[%clk 0:00:18]} 41. Kf3 {[%clk 0:00:25]}  Kf6 {[%clk 0:00:18]} 42. Be1 {[%clk 0:00:22]}  e4+ {[%clk 0:00:17]} 43. Kxf4 {[%clk 0:00:21]}  Kg6 {[%clk 0:00:18]} 44. Rh2 {[%clk 0:00:18]}  Kg7 {[%clk 0:00:18]} 45. Ke3 {[%clk 0:00:17]}  Rc8 {[%clk 0:00:17]} 46. h8=Q+ {[%clk 0:00:16]}  Rxh8 {[%clk 0:00:18]} 47. Rxh8 {[%clk 0:00:16]}  Kxh8 {[%clk 0:00:19]} 48. Kd4 {[%clk 0:00:17]} 1-0


[Site "https://www.chess.com"]

[Event "Titled Tuesday Blitz March 14 Late 2023"]
[White "Gorodetzky, David"]
[Black "Vachier-Lagrave, Maxime"]
[WhiteFideId "2813416"]
[BlackFideId "623539"]
[WhiteElo "2484"]
[BlackElo "2740"]
[Result "0-1"]
[Round "04"]
[TimeControl "180+1"]
[Date "2023.03.14"]
[WhiteClock "0:00:06"]
[BlackClock "0:00:12"]

1. Nf3 {[%clk 0:02:58]}  Nf6 {[%clk 0:02:59]} 2. b3 {[%clk 0:02:58]}  b6 {[%clk 0:02:57]} 3. Bb2 {[%clk 0:02:58]}  Bb7 {[%clk 0:02:58]} 4. g3 {[%clk 0:02:59]}  g6 {[%clk 0:02:58]} 5. Bg2 {[%clk 0:02:59]}  Bg7 {[%clk 0:02:58]} 6. c4 {[%clk 0:03:00]}  O-O {[%clk 0:02:59]} 7. O-O {[%clk 0:03:00]}  e6 {[%clk 0:02:58]} 8. Nc3 {[%clk 0:02:59]}  d5 {[%clk 0:02:58]} 9. d4 {[%clk 0:02:55]}  Nbd7 {[%clk 0:02:58]} 10. Rc1 {[%clk 0:02:55]}  Re8 {[%clk 0:02:55]} 11. e3 {[%clk 0:02:49]}  c5 {[%clk 0:02:54]} 12. cxd5 {[%clk 0:02:50]}  Nxd5 {[%clk 0:02:53]} 13. Nxd5 {[%clk 0:02:50]}  Bxd5 {[%clk 0:02:53]} 14. Qe2 {[%clk 0:02:50]}  cxd4 {[%clk 0:02:52]} 15. Nxd4 {[%clk 0:02:50]}  Bxg2 {[%clk 0:02:50]} 16. Kxg2 {[%clk 0:02:51]}  Nc5 {[%clk 0:02:41]} 17. Rfd1 {[%clk 0:02:51]}  Qd5+ {[%clk 0:02:38]} 18. f3 {[%clk 0:02:51]}  Qh5 {[%clk 0:02:20]} 19. b4 {[%clk 0:02:39]}  Nb7 {[%clk 0:01:58]} 20. Rc7 {[%clk 0:02:22]}  Nd6 {[%clk 0:01:54]} 21. g4 {[%clk 0:02:18]}  Qg5 {[%clk 0:01:49]} 22. Rd7 {[%clk 0:01:59]}  Nf5 {[%clk 0:01:36]} 23. f4 {[%clk 0:01:42]}  Nxe3+ {[%clk 0:01:28]} 24. Kf3 {[%clk 0:01:35]}  Qh6 {[%clk 0:00:57]} 25. Qxe3 {[%clk 0:01:25]}  e5 {[%clk 0:00:57]} 26. Nc6 {[%clk 0:00:52]}  Qh3+ {[%clk 0:00:54]} 27. Ke2 {[%clk 0:00:45]}  Qg2+ {[%clk 0:00:41]} 28. Ke1 {[%clk 0:00:35]}  Qxc6 {[%clk 0:00:39]} 29. fxe5 {[%clk 0:00:33]}  Qh1+ {[%clk 0:00:39]} 30. Ke2 {[%clk 0:00:27]}  Qg2+ {[%clk 0:00:24]} 31. Qf2 {[%clk 0:00:26]}  Qxg4+ {[%clk 0:00:25]} 32. Qf3 {[%clk 0:00:26]}  Qc4+ {[%clk 0:00:24]} 33. Kf2 {[%clk 0:00:22]}  Qxa2 {[%clk 0:00:20]} 34. R1d2 {[%clk 0:00:19]}  Rac8 {[%clk 0:00:14]} 35. Kg3 {[%clk 0:00:08]}  Qe6 {[%clk 0:00:13]} 36. R2d6 {[%clk 0:00:08]}  Bxe5+ {[%clk 0:00:13]} 37. Kh4 {[%clk 0:00:06]}  Bxd6 {[%clk 0:00:12]} 0-1


[Site "https://www.chess.com"]

[Event "Titled Tuesday Blitz March 14 Late 2023"]
[White "Gubajdullin, Alexei"]
[Black "Steinberg, Nitzan"]
[WhiteFideId "4141202"]
[BlackFideId "2801795"]
[WhiteElo "2267"]
[BlackElo "2486"]
[Result "0-1"]
[Round "04"]
[TimeControl "180+1"]
[Date "2023.03.14"]
[WhiteClock "0:00:05"]
[BlackClock "0:00:16"]

1. d4 {[%clk 0:03:00]}  Nf6 {[%clk 0:02:59]} 2. Nf3 {[%clk 0:03:00]}  g6 {[%clk 0:03:00]} 3. Bf4 {[%clk 0:03:00]}  Bg7 {[%clk 0:03:00]} 4. e3 {[%clk 0:03:00]}  O-O {[%clk 0:03:01]} 5. Be2 {[%clk 0:03:00]}  d6 {[%clk 0:03:02]} 6. O-O {[%clk 0:03:00]}  b6 {[%clk 0:03:02]} 7. h3 {[%clk 0:03:00]}  Bb7 {[%clk 0:03:02]} 8. a4 {[%clk 0:02:59]}  a6 {[%clk 0:03:02]} 9. a5 {[%clk 0:02:58]}  b5 {[%clk 0:03:02]} 10. c4 {[%clk 0:02:58]}  bxc4 {[%clk 0:03:00]} 11. Bxc4 {[%clk 0:02:58]}  Nbd7 {[%clk 0:02:56]} 12. Nc3 {[%clk 0:02:57]}  c5 {[%clk 0:02:50]} 13. d5 {[%clk 0:02:57]}  Rb8 {[%clk 0:02:43]} 14. Qe2 {[%clk 0:02:54]}  Qc8 {[%clk 0:02:42]} 15. e4 {[%clk 0:02:52]}  Nh5 {[%clk 0:02:26]} 16. Bh2 {[%clk 0:02:51]}  Ne5 {[%clk 0:02:27]} 17. Bxe5 {[%clk 0:02:34]}  dxe5 {[%clk 0:02:21]} 18. Rfc1 {[%clk 0:02:16]}  Nf4 {[%clk 0:02:19]} 19. Qf1 {[%clk 0:02:14]}  Kh8 {[%clk 0:02:18]} 20. Na4 {[%clk 0:02:11]}  f5 {[%clk 0:02:19]} 21. Nb6 {[%clk 0:02:09]}  Qc7 {[%clk 0:02:12]} 22. Nd2 {[%clk 0:01:17]}  Bh6 {[%clk 0:02:12]} 23. Rc2 {[%clk 0:01:15]}  e6 {[%clk 0:01:56]} 24. Bxa6 {[%clk 0:01:04]}  fxe4 {[%clk 0:01:54]} 25. Nxe4 {[%clk 0:00:51]}  Bxd5 {[%clk 0:01:43]} 26. Nxd5 {[%clk 0:00:40]}  exd5 {[%clk 0:01:43]} 27. Nxc5 {[%clk 0:00:40]}  e4 {[%clk 0:01:36]} 28. Qd1 {[%clk 0:00:36]}  Qe7 {[%clk 0:01:22]} 29. Bf1 {[%clk 0:00:29]}  Bg7 {[%clk 0:00:58]} 30. g3 {[%clk 0:00:27]}  Nh5 {[%clk 0:00:56]} 31. Qxd5 {[%clk 0:00:20]}  e3 {[%clk 0:00:56]} 32. Ne6 {[%clk 0:00:19]}  Rf5 {[%clk 0:00:42]} 33. Qc6 {[%clk 0:00:15]}  exf2+ {[%clk 0:00:37]} 34. Kh2 {[%clk 0:00:14]}  Nxg3 {[%clk 0:00:22]} 35. Kxg3 {[%clk 0:00:11]}  Be5+ {[%clk 0:00:21]} 36. Kg2 {[%clk 0:00:11]}  Rbf8 {[%clk 0:00:15]} 37. Nxf8 {[%clk 0:00:10]}  Qg5+ {[%clk 0:00:15]} 38. Kh1 {[%clk 0:00:05]}  Qg1# {[%clk 0:00:16]} 0-1


[Site "https://www.chess.com"]

[Event "Titled Tuesday Blitz March 14 Late 2023"]
[White "Hajiyev, Kanan"]
[Black "Friedel, Tom"]
[WhiteFideId "13404148"]
[BlackFideId "2002108"]
[WhiteElo "2103"]
[BlackElo "2288"]
[Result "1-0"]
[Round "04"]
[TimeControl "180+1"]
[Date "2023.03.14"]
[WhiteClock "0:01:49"]
[BlackClock "0:00:52"]

1. d4 {[%clk 0:03:00]}  d5 {[%clk 0:02:59]} 2. Nf3 {[%clk 0:03:01]}  Nf6 {[%clk 0:02:58]} 3. c4 {[%clk 0:03:02]}  e6 {[%clk 0:02:59]} 4. cxd5 {[%clk 0:03:02]}  exd5 {[%clk 0:02:59]} 5. Nc3 {[%clk 0:03:02]}  Be7 {[%clk 0:02:57]} 6. Qc2 {[%clk 0:03:01]}  O-O {[%clk 0:02:57]} 7. Bf4 {[%clk 0:03:01]}  c6 {[%clk 0:02:57]} 8. e3 {[%clk 0:03:01]}  Re8 {[%clk 0:02:56]} 9. Bd3 {[%clk 0:03:00]}  Nbd7 {[%clk 0:02:55]} 10. O-O {[%clk 0:03:00]}  Nf8 {[%clk 0:02:56]} 11. Rab1 {[%clk 0:02:56]}  Ng6 {[%clk 0:02:50]} 12. Bg3 {[%clk 0:02:55]}  Bd6 {[%clk 0:02:51]} 13. b4 {[%clk 0:02:48]}  Bxg3 {[%clk 0:02:50]} 14. hxg3 {[%clk 0:02:49]}  a6 {[%clk 0:02:39]} 15. a4 {[%clk 0:02:48]}  Bg4 {[%clk 0:02:35]} 16. b5 {[%clk 0:02:47]}  axb5 {[%clk 0:02:36]} 17. axb5 {[%clk 0:02:48]}  Qd7 {[%clk 0:02:28]} 18. bxc6 {[%clk 0:02:31]}  bxc6 {[%clk 0:02:27]} 19. Na4 {[%clk 0:02:32]}  Bxf3 {[%clk 0:02:11]} 20. Nb6 {[%clk 0:02:31]}  Qg4 {[%clk 0:02:07]} 21. gxf3 {[%clk 0:02:21]}  Qh3 {[%clk 0:02:01]} 22. Nxa8 {[%clk 0:02:17]}  Rxa8 {[%clk 0:01:29]} 23. Bf5 {[%clk 0:02:12]}  Qh5 {[%clk 0:01:25]} 24. Qxc6 {[%clk 0:02:11]}  Re8 {[%clk 0:01:22]} 25. Bxg6 {[%clk 0:02:07]}  hxg6 {[%clk 0:01:21]} 26. Kg2 {[%clk 0:02:07]}  g5 {[%clk 0:01:14]} 27. g4 {[%clk 0:02:00]}  Qg6 {[%clk 0:01:15]} 28. Rb6 {[%clk 0:01:58]}  Qd3 {[%clk 0:00:55]} 29. Qb5 {[%clk 0:01:52]}  Qd2 {[%clk 0:00:52]} 30. Rxf6 {[%clk 0:01:49]} 1-0


[Site "https://www.chess.com"]

[Event "Titled Tuesday Blitz March 14 Late 2023"]
[White "Hoffmann, Asa"]
[Black "Womacka, Mathias"]
[WhiteFideId "2001470"]
[BlackFideId "4611390"]
[WhiteElo "2117"]
[BlackElo "2377"]
[Result "1/2-1/2"]
[Round "04"]
[TimeControl "180+1"]
[Date "2023.03.14"]
[WhiteClock "0:00:05"]
[BlackClock "0:00:07"]

1. d4 {[%clk 0:02:56]}  Nf6 {[%clk 0:02:59]} 2. Bg5 {[%clk 0:02:52]}  Ne4 {[%clk 0:02:58]} 3. Bf4 {[%clk 0:02:52]}  c5 {[%clk 0:02:57]} 4. f3 {[%clk 0:02:52]}  Qa5+ {[%clk 0:02:56]} 5. c3 {[%clk 0:02:52]}  Nf6 {[%clk 0:02:55]} 6. d5 {[%clk 0:02:52]}  Qb6 {[%clk 0:02:54]} 7. e4 {[%clk 0:02:51]}  Qxb2 {[%clk 0:02:53]} 8. Nd2 {[%clk 0:02:50]}  Qxc3 {[%clk 0:02:53]} 9. Bc7 {[%clk 0:02:50]}  d6 {[%clk 0:02:53]} 10. Rb1 {[%clk 0:02:45]}  g6 {[%clk 0:02:07]} 11. Ne2 {[%clk 0:02:30]}  Qe3 {[%clk 0:01:36]} 12. Nc4 {[%clk 0:02:24]}  Qh6 {[%clk 0:01:32]} 13. Ba5 {[%clk 0:02:07]}  Bg7 {[%clk 0:01:29]} 14. Bd2 {[%clk 0:02:06]}  g5 {[%clk 0:01:18]} 15. h4 {[%clk 0:02:05]}  Qg6 {[%clk 0:01:17]} 16. hxg5 {[%clk 0:02:00]}  Nh5 {[%clk 0:01:17]} 17. g4 {[%clk 0:01:51]}  Bxg4 {[%clk 0:01:14]} 18. fxg4 {[%clk 0:01:45]}  Qxe4 {[%clk 0:01:14]} 19. gxh5 {[%clk 0:01:27]}  Qxh1 {[%clk 0:01:09]} 20. Qb3 {[%clk 0:00:48]}  O-O {[%clk 0:01:02]} 21. h6 {[%clk 0:00:45]}  Bh8 {[%clk 0:00:49]} 22. Qxb7 {[%clk 0:00:45]}  Qh4+ {[%clk 0:00:46]} 23. Kd1 {[%clk 0:00:43]}  Qxc4 {[%clk 0:00:44]} 24. Qxa8 {[%clk 0:00:41]}  Nd7 {[%clk 0:00:43]} 25. Qc6 {[%clk 0:00:39]}  Ne5 {[%clk 0:00:40]} 26. Qb5 {[%clk 0:00:39]}  Qxa2 {[%clk 0:00:38]} 27. Qb3 {[%clk 0:00:35]}  Qxb3+ {[%clk 0:00:33]} 28. Rxb3 {[%clk 0:00:35]}  f6 {[%clk 0:00:33]} 29. Bh3 {[%clk 0:00:31]}  fxg5 {[%clk 0:00:27]} 30. Be6+ {[%clk 0:00:29]}  Nf7 {[%clk 0:00:27]} 31. Bxg5 {[%clk 0:00:29]}  Bf6 {[%clk 0:00:27]} 32. Rg3 {[%clk 0:00:28]}  Kh8 {[%clk 0:00:20]} 33. Bxf6+ {[%clk 0:00:27]}  exf6 {[%clk 0:00:20]} 34. Bxf7 {[%clk 0:00:22]}  Rxf7 {[%clk 0:00:21]} 35. Nf4 {[%clk 0:00:22]}  a5 {[%clk 0:00:18]} 36. Ne6 {[%clk 0:00:22]}  a4 {[%clk 0:00:17]} 37. Kc2 {[%clk 0:00:21]}  Ra7 {[%clk 0:00:16]} 38. Ra3 {[%clk 0:00:19]}  Kg8 {[%clk 0:00:15]} 39. Kc3 {[%clk 0:00:19]}  Kf7 {[%clk 0:00:15]} 40. Kc4 {[%clk 0:00:19]}  Kg6 {[%clk 0:00:15]} 41. Kb5 {[%clk 0:00:19]}  Kxh6 {[%clk 0:00:15]} 42. Kc6 {[%clk 0:00:19]}  Ra6+ {[%clk 0:00:13]} 43. Kd7 {[%clk 0:00:19]}  f5 {[%clk 0:00:12]} 44. Ke7 {[%clk 0:00:15]}  Kg6 {[%clk 0:00:11]} 45. Nc7 {[%clk 0:00:12]}  Ra5 {[%clk 0:00:10]} 46. Kxd6 {[%clk 0:00:11]}  f4 {[%clk 0:00:11]} 47. Ne6 {[%clk 0:00:10]}  f3 {[%clk 0:00:10]} 48. Nf4+ {[%clk 0:00:10]}  Kf5 {[%clk 0:00:10]} 49. Nd3 {[%clk 0:00:10]}  Ke4 {[%clk 0:00:10]} 50. Nxc5+ {[%clk 0:00:09]}  Kd4 {[%clk 0:00:10]} 51. Ne6+ {[%clk 0:00:09]}  Ke4 {[%clk 0:00:10]} 52. Ng5+ {[%clk 0:00:08]}  Kf4 {[%clk 0:00:10]} 53. Nxf3 {[%clk 0:00:08]}  h5 {[%clk 0:00:10]} 54. Nd4 {[%clk 0:00:07]}  Ke4 {[%clk 0:00:09]} 55. Ne6 {[%clk 0:00:07]}  Rxd5+ {[%clk 0:00:09]} 56. Kc6 {[%clk 0:00:06]}  Ra5 {[%clk 0:00:10]} 57. Nc5+ {[%clk 0:00:06]}  Kf4 {[%clk 0:00:09]} 58. Kb6 {[%clk 0:00:06]}  Ra8 {[%clk 0:00:08]} 59. Kb7 {[%clk 0:00:06]}  Ra5 {[%clk 0:00:07]} 60. Kb6 {[%clk 0:00:06]}  Ra8 {[%clk 0:00:07]} 61. Kb7 {[%clk 0:00:06]}  Ra5 {[%clk 0:00:07]} 62. Kb6 {[%clk 0:00:05]} 1/2-1/2


[Site "https://www.chess.com"]

[Event "Titled Tuesday Blitz March 14 Late 2023"]
[White "Kohler, Aran"]
[Black "Kokoszczynski, Jan"]
[WhiteFideId "1002856"]
[BlackFideId "1174460"]
[WhiteElo "2246"]
[BlackElo "2139"]
[Result "1-0"]
[Round "04"]
[TimeControl "180+1"]
[Date "2023.03.14"]
[WhiteClock "0:02:22"]
[BlackClock "0:02:39"]

1. d4 {[%clk 0:02:59]}  d5 {[%clk 0:02:59]} 2. Nf3 {[%clk 0:02:59]}  Nf6 {[%clk 0:02:59]} 3. Bg5 {[%clk 0:02:59]}  e6 {[%clk 0:02:57]} 4. Nbd2 {[%clk 0:02:58]}  Be7 {[%clk 0:02:57]} 5. e3 {[%clk 0:02:57]}  O-O {[%clk 0:02:57]} 6. Bd3 {[%clk 0:02:57]}  c5 {[%clk 0:02:56]} 7. c3 {[%clk 0:02:57]}  Nc6 {[%clk 0:02:51]} 8. h4 {[%clk 0:02:55]}  b6 {[%clk 0:02:47]} 9. Bxf6 {[%clk 0:02:53]}  Bxf6 {[%clk 0:02:47]} 10. Bxh7+ {[%clk 0:02:53]}  Kh8 {[%clk 0:02:44]} 11. Bd3 {[%clk 0:02:27]}  e5 {[%clk 0:02:41]} 12. Nxe5 {[%clk 0:02:26]}  g6 {[%clk 0:02:39]} 13. Nxc6 {[%clk 0:02:22]} 1-0


[Site "https://www.chess.com"]

[Event "Titled Tuesday Blitz March 14 Late 2023"]
[White "Koutlas, Nikolaos"]
[Black "Korchmar, Vasiliy"]
[WhiteFideId "25827138"]
[BlackFideId "24131750"]
[WhiteElo "2215"]
[BlackElo "2370"]
[Result "1-0"]
[Round "04"]
[TimeControl "180+1"]
[Date "2023.03.14"]
[WhiteClock "0:00:06"]
[BlackClock "0:00:02"]

1. c4 {[%clk 0:03:00]}  c6 {[%clk 0:02:59]} 2. Nf3 {[%clk 0:02:59]}  d5 {[%clk 0:03:00]} 3. g3 {[%clk 0:02:59]}  g6 {[%clk 0:03:00]} 4. Bg2 {[%clk 0:02:59]}  Bg7 {[%clk 0:03:00]} 5. O-O {[%clk 0:02:59]}  e5 {[%clk 0:03:01]} 6. cxd5 {[%clk 0:02:48]}  cxd5 {[%clk 0:03:02]} 7. d3 {[%clk 0:02:45]}  Nc6 {[%clk 0:03:02]} 8. Nc3 {[%clk 0:02:44]}  Nge7 {[%clk 0:03:02]} 9. e4 {[%clk 0:02:44]}  d4 {[%clk 0:02:58]} 10. Nd5 {[%clk 0:02:43]}  O-O {[%clk 0:02:40]} 11. Nd2 {[%clk 0:02:40]}  Nxd5 {[%clk 0:02:36]} 12. exd5 {[%clk 0:02:39]}  Nb4 {[%clk 0:02:37]} 13. Nc4 {[%clk 0:02:37]}  Bf5 {[%clk 0:02:19]} 14. Bd2 {[%clk 0:01:43]}  Nxd3 {[%clk 0:02:01]} 15. g4 {[%clk 0:01:41]}  Bd7 {[%clk 0:01:56]} 16. Qe2 {[%clk 0:01:15]}  Nf4 {[%clk 0:01:39]} 17. Bxf4 {[%clk 0:01:10]}  exf4 {[%clk 0:01:39]} 18. h3 {[%clk 0:01:05]}  Bb5 {[%clk 0:01:34]} 19. a4 {[%clk 0:01:03]}  Ba6 {[%clk 0:01:29]} 20. b4 {[%clk 0:01:03]}  d3 {[%clk 0:01:23]} 21. Qxd3 {[%clk 0:01:02]}  Bxc4 {[%clk 0:01:18]} 22. Qxc4 {[%clk 0:01:03]}  Bxa1 {[%clk 0:01:17]} 23. Rxa1 {[%clk 0:01:03]}  Qf6 {[%clk 0:01:15]} 24. Rd1 {[%clk 0:00:47]}  f3 {[%clk 0:01:14]} 25. Bh1 {[%clk 0:00:47]}  Rac8 {[%clk 0:01:09]} 26. Qe4 {[%clk 0:00:44]}  Rc3 {[%clk 0:01:00]} 27. d6 {[%clk 0:00:41]}  Rd8 {[%clk 0:00:56]} 28. d7 {[%clk 0:00:34]}  Kg7 {[%clk 0:00:56]} 29. Qxb7 {[%clk 0:00:33]}  h5 {[%clk 0:00:39]} 30. Qxa7 {[%clk 0:00:24]}  hxg4 {[%clk 0:00:38]} 31. hxg4 {[%clk 0:00:24]}  Qf4 {[%clk 0:00:10]} 32. Qd4+ {[%clk 0:00:20]}  Qxd4 {[%clk 0:00:10]} 33. Rxd4 {[%clk 0:00:21]}  Kf6 {[%clk 0:00:04]} 34. Kh2 {[%clk 0:00:14]}  Ke7 {[%clk 0:00:04]} 35. Kg3 {[%clk 0:00:14]}  Rxd7 {[%clk 0:00:03]} 36. Rxd7+ {[%clk 0:00:14]}  Kxd7 {[%clk 0:00:04]} 37. Bxf3 {[%clk 0:00:13]}  Rc4 {[%clk 0:00:04]} 38. b5 {[%clk 0:00:09]}  Rxa4 {[%clk 0:00:03]} 39. b6 {[%clk 0:00:10]}  Rb4 {[%clk 0:00:03]} 40. b7 {[%clk 0:00:10]}  Kd6 {[%clk 0:00:04]} 41. g5 {[%clk 0:00:09]}  Ke5 {[%clk 0:00:03]} 42. Bg2 {[%clk 0:00:09]}  Kf5 {[%clk 0:00:03]} 43. f4 {[%clk 0:00:09]}  Rb3+ {[%clk 0:00:03]} 44. Bf3 {[%clk 0:00:09]}  Rb4 {[%clk 0:00:03]} 45. Bg4+ {[%clk 0:00:07]}  Ke4 {[%clk 0:00:02]} 46. Bf3+ {[%clk 0:00:06]}  Ke3 {[%clk 0:00:03]} 47. Bd5 {[%clk 0:00:06]}  Rb1 {[%clk 0:00:02]} 48. Bxf7 {[%clk 0:00:06]}  Rxb7 {[%clk 0:00:02]} 49. Bxg6 {[%clk 0:00:06]} 1-0


[Site "https://www.chess.com"]